fUSD/lending_fUSD_20241023
["ID","MTS","AMOUNT","RATE_DAILY","PERIOD"]
[340691952,1729687841941,-419.969412,0.00052054,120]
[340691953,1729687841951,-152.467185,0.00052054,120]
[340691954,1729687841961,-500.0,0.00052054,120]
[340691955,1729687841971,-500.0,0.00052054,120]
[340691956,1729687841980,-500.0,0.00052054,120]
[340691957,1729687841989,-500.0,0.00052054,120]
[340691958,1729687841999,-500.0,0.00052054,120]
[340691959,1729687842009,-500.0,0.00052054,120]
[340691960,1729687842019,-500.0,0.00052054,120]
[340691961,1729687842028,-500.0,0.00052054,120]
[340691962,1729687842037,-500.0,0.00052054,120]
[340691963,1729687842047,-500.0,0.00052054,120]
[340691964,1729687842056,-502.20106628,0.00052054,120]
[340691965,1729687842066,-608.83175,0.00052054,120]
[340691966,1729687842075,-500.0,0.00052054,120]
[340691967,1729687842085,-511.58473887,0.00052054,120]
[340691968,1729687842095,-500.0,0.00052054,120]
[340691969,1729687842109,-500.0,0.00052054,120]
[340691970,1729687842119,-500.0,0.00052054,120]
[340691971,1729687842128,-500.0,0.00052054,120]
[340691972,1729687842137,-718.08,0.00052054,120]
[340691973,1729687842148,-500.0,0.00052054,120]
[340691974,1729687842158,-376.08099521,0.00052054,120]
[340691975,1729687842167,-500.0,0.00052054,120]
[340691976,1729687842177,-500.0,0.00052054,120]
[340691977,1729687842187,-3221.83,0.00052054,120]
[340691978,1729687842197,-500.0,0.00052054,120]
[340691979,1729687842207,-500.0,0.00052054,120]
[340691980,1729687842216,-500.0,0.00052054,120]
[340691981,1729687842226,-500.0,0.00052054,120]
[340691982,1729687842236,-2150.29,0.00052054,120]
[340691983,1729687842245,-500.0,0.00052054,120]
[340691984,1729687842255,-500.0,0.00052054,120]
[340691985,1729687842264,-500.0,0.00052054,120]
[340691986,1729687842274,-568.08386775,0.00052054,120]
[340691987,1729687842283,-500.0,0.00052054,120]
[340691988,1729687842293,-500.0,0.00052054,120]
[340691989,1729687842302,-586.33,0.00052054,120]
[340691990,1729687842311,-545.43905459,0.00052054,120]
[340691991,1729687842321,-500.0,0.00052054,120]
[340691992,1729687842330,-500.0,0.00052054,120]
[340691993,1729687842339,-500.0,0.00052054,120]
[340691994,1729687842348,-500.0,0.00052054,120]
[340691995,1729687842359,-500.0,0.00052054,120]
[340691996,1729687842368,-1345.36,0.00052054,7]
[340691997,1729687842377,-500.0,0.00052054,120]
[340691998,1729687842387,-500.0,0.00052054,120]
[340691999,1729687842396,-500.0,0.00052054,120]
[340692000,1729687842406,-500.0,0.00052054,120]
[340692001,1729687842416,-23591.49,0.00052054,120]
[340692002,1729687842426,-500.0,0.00052054,120]
[340692003,1729687842435,-560.42871581,0.00052054,120]
[340692004,1729687842445,-1599.11,0.00052054,120]
[340692005,1729687842455,-500.0,0.00052054,120]
[340692006,1729687842464,-500.0,0.00052054,120]
[340692007,1729687842474,-500.0,0.00052054,120]
[340692008,1729687842483,-500.0,0.00052054,120]
[340692009,1729687842493,-574.71671837,0.00052054,120]
[340692010,1729687842503,-500.0,0.00052054,120]
[340692011,1729687842513,-500.0,0.00052054,120]
[340692012,1729687842522,-500.0,0.00052054,120]
[340692013,1729687842532,-500.0,0.00052054,120]
[340692014,1729687842541,-500.0,0.00052054,120]
[340692015,1729687842551,-500.0,0.00052054,120]
[340692016,1729687842560,-500.0,0.00052054,120]
[340692017,1729687842569,-2991.32,0.00052054,120]
[340692018,1729687842579,-2385.02,0.00052054,120]
[340692019,1729687842589,-500.0,0.00052054,120]
[340692020,1729687842598,-500.0,0.00052054,120]
[340692021,1729687842609,-500.0,0.00052054,120]
[340692022,1729687842621,-500.0,0.00052054,120]
[340692023,1729687842629,-500.0,0.00052054,120]
[340692024,1729687842639,-500.0,0.00052054,120]
[340692025,1729687842648,-895.01,0.00052054,120]
[340692026,1729687842658,-500.0,0.00052054,120]
[340692027,1729687842667,-690.94,0.00052054,120]
[340692028,1729687842676,-500.0,0.00052054,120]
[340692029,1729687842685,-500.0,0.00052054,120]
[340692030,1729687842694,-500.0,0.00052054,120]
[340692031,1729687842704,-1473.27,0.00052054,120]
[340692032,1729687842713,-2252.31,0.00052054,120]
[340692033,1729687842722,-500.0,0.00052054,120]
[340692034,1729687842731,-500.0,0.00052054,120]
[340692035,1729687842741,-502.13148216,0.00052054,120]
[340692036,1729687842750,-500.0,0.00052054,120]
[340692037,1729687842760,-3701.33,0.00052054,120]
[340692038,1729687842769,-500.0,0.00052054,120]
[340692039,1729687842778,-308.22275223,0.00052054,120]
[340692040,1729687842787,-500.0,0.00052054,120]
[340692041,1729687842797,-1905.47,0.00052054,120]
[340692042,1729687842806,-500.0,0.00052054,120]
[340692043,1729687842815,-672.58,0.00052054,120]
[340692044,1729687842824,-501.09436855,0.00052054,120]
[340692045,1729687842833,-918.99,0.00052054,120]
[340692046,1729687842843,-500.0,0.00052054,120]
[340692047,1729687842852,-543.23,0.00052054,120]
[340692048,1729687842864,-1660.93,0.00052054,120]
[340692049,1729687842873,-722.18,0.00052054,120]
[340692050,1729687842882,-505.23068146,0.00052054,120]
[340692051,1729687842891,-506.93127197,0.00052054,120]
[340692052,1729687842900,-747.88,0.00052054,120]
[340692053,1729687842908,-500.0,0.00052054,120]
[340692054,1729687842917,-500.0,0.00052054,120]
[340692055,1729687842926,-500.0,0.00052054,120]
[340692056,1729687842935,-500.0,0.00052054,120]
[340692057,1729687842944,-500.0,0.00052054,120]
[340692058,1729687842953,-26.53486239,0.00052054,120]
[340692059,1729687842977,-505.5834587,0.00052054,120]
[340692060,1729687842986,-1333.44,0.00052054,120]
[340692061,1729687842996,-510.21,0.00052054,120]
[340692062,1729687843005,-355.3409367,0.00052054,120]
[340692063,1729687843015,-144.6590633,0.00052054,120]
[340692064,1729687843025,-384.46104717,0.00052054,120]
[340692065,1729687843045,-115.53895283,0.00052054,120]
[340692066,1729687843054,-293.80750726,0.00052054,21]
[340692081,1729687843226,-791.81406173,0.000514,2]
[340692082,1729687843245,-265.1286,0.000514,2]
[340692083,1729687843256,-1181.8693022,0.000514,2]
[340692084,1729687843267,-261.18803607,0.000514,2]
[340692085,1729687843277,-3488.6367418,0.00052054,21]
[340692086,1729687843288,-342.784,0.00052054,21]
[340692088,1729687843302,-740.07,0.00052054,21]
[340692090,1729687843314,-3829.74175094,0.00052054,21]
[340692092,1729687843324,-500.0,0.00052054,120]
[340692094,1729687843333,-795.31,0.00052054,120]
[340692096,1729687843342,-500.0,0.00052054,120]
[340692097,1729687843351,-500.0,0.00052054,120]
[340692098,1729687843362,-500.0,0.00052054,120]
[340692099,1729687843371,-825.47,0.00052054,120]
[340692100,1729687843380,-2113.12,0.00052054,120]
[340692101,1729687843389,-500.0,0.00052054,120]
[340692102,1729687843398,-500.0,0.00052054,120]
[340692103,1729687843407,-1000.0,0.00052054,120]
[340692104,1729687843417,-500.0,0.00052054,120]
[340692105,1729687843426,-531.65855033,0.00052054,120]
[340692106,1729687843435,-500.0,0.00052054,120]
[340692107,1729687843444,-500.0,0.00052054,120]
[340692108,1729687843454,-556.35,0.00052054,120]
[340692109,1729687843463,-500.0,0.00052054,120]
[340692110,1729687843472,-500.0,0.00052054,120]
[340692111,1729687843482,-500.64038574,0.00052054,120]
[340692112,1729687843492,-500.0,0.00052054,120]
[340692113,1729687843502,-500.0,0.00052054,120]
[340692114,1729687843511,-500.0,0.00052054,120]
[340692115,1729687843521,-500.0,0.00052054,120]
[340692116,1729687843530,-500.0,0.00052054,2]
[340692117,1729687843539,-500.0,0.00052054,120]
[340692118,1729687843549,-500.0,0.00052054,120]
[340692119,1729687843558,-500.0,0.00052054,120]
[340692120,1729687843568,-500.0,0.00052054,120]
[340692121,1729687843578,-2654.52,0.00052054,120]
[340692122,1729687843587,-557.57,0.00052054,120]
[340692123,1729687843596,-428.96417095,0.00052054,120]
[340692124,1729687843618,-71.03582905,0.00052054,120]
[340692125,1729687843628,-500.0,0.00052054,120]
[340692126,1729687843638,-500.0,0.00052054,120]
[340692127,1729687843647,-500.0,0.00052054,120]
[340692128,1729687843656,-2072.24,0.00052054,120]
[340692129,1729687843666,-500.0,0.00052054,120]
[340692130,1729687843675,-9020.16,0.00052054,120]
[340692131,1729687843684,-500.0,0.00052054,120]
[340692132,1729687843693,-500.0,0.00052054,120]
[340692133,1729687843702,-500.0,0.00052054,120]
[340692134,1729687843713,-500.0,0.00052054,120]
[340692136,1729687843722,-764.51,0.00052054,120]
[340692138,1729687843732,-500.0,0.00052054,120]
[340692140,1729687843741,-500.0,0.00052054,120]
[340692142,1729687843750,-500.0,0.00052054,120]
[340692144,1729687843759,-3274.03,0.00052054,120]
[340692145,1729687843768,-500.0,0.00052054,120]
[340692146,1729687843777,-1081.71,0.00052054,120]
[340692148,1729687843786,-500.0,0.00052054,120]
[340692150,1729687843795,-500.0,0.00052054,120]
[340692151,1729687843804,-309.77620794,0.00052054,2]
[340692153,1729687843813,-481.71908321,0.00052054,120]
[340692155,1729687843822,-593.22,0.00052054,120]
[340692157,1729687843831,-500.0,0.00052054,120]
[340692159,1729687843841,-500.0,0.00052054,120]
[340692160,1729687843850,-500.0,0.00052054,120]
[340692162,1729687843860,-519.7148373,0.00052054,120]
[340692164,1729687843870,-500.0,0.00052054,120]
[340692166,1729687843879,-505.62,0.00052054,120]
[340692168,1729687843889,-500.0,0.00052054,120]
[340692170,1729687843898,-500.0,0.00052054,120]
[340692172,1729687843906,-500.0,0.00052054,120]
[340692174,1729687843915,-279.7793802,0.00052091,31]
[340692175,1729687843924,-606.79,0.000521,120]
[340692177,1729687843933,-606.79,0.000522,120]
[340692179,1729687843942,-51767.2688886,0.00052218,11]
[340692181,1729687843952,-30418.565362,0.00052218,11]
[340692183,1729687843961,-39498.55783588,0.00052228,120]
[340692185,1729687843972,-49389.44216412,0.00052228,120]
[340692187,1729687843982,-279.7793802,0.00052228,31]
[340692189,1729687843991,-6083.7130724,0.00052308,11]
[340692191,1729687844000,-31355.25124968,0.00052318,11]
[340692193,1729687844011,-29039.89578702,0.00052318,11]
[340692195,1729687844020,-47901.0138669,0.00052318,11]
[340692197,1729687844031,-30168.90623135,0.00052318,11]
[340692200,1729687844051,-857.69234347,0.00052318,11]
[340692202,1729687844064,-312.60966571,0.00052318,11]
[340692246,1729687844499,-150.31,0.00047174,2]
[340692248,1729687844509,-440.47872731,0.00051943,28]
[340692249,1729687844519,-143.56310073,0.00052318,11]
[340692252,1729687844531,-501.0576512,0.00052318,11]
[340692254,1729687844543,-13255.13176892,0.00052318,11]
[340692256,1729687844554,-3200.27984598,0.00052318,11]
[340692258,1729687844570,-489.95517313,0.00052318,11]
[340692261,1729687844582,-419.86683023,0.00052318,11]
[340692263,1729687844593,-250.69,0.00052318,11]
[340692265,1729687844604,-4426.88633819,0.00052318,11]
[340692267,1729687844617,-449.242,0.00052318,11]
[340692270,1729687844637,-9029.48,0.00052318,11]
[340692273,1729687844658,-34602.73892219,0.00052318,11]
[340692275,1729687844667,-154.520366,0.00052318,120]
[340692277,1729687844677,-151.0,0.00052318,120]
[340692279,1729687844687,-151.0,0.00052318,120]
[340692281,1729687844696,-155.029599,0.00052318,120]
[340692283,1729687844706,-153.711931,0.00052318,120]
[340692285,1729687844715,-153.730947,0.00052318,120]
[340692287,1729687844725,-151.0,0.00052318,120]
[340692289,1729687844734,-152.045972,0.00052318,120]
[340692291,1729687844744,-151.0,0.00052318,120]
[340692293,1729687844754,-500.0,0.00052328,120]
[340692295,1729687844764,-500.0,0.00052328,120]
[340692297,1729687844774,-500.0,0.00052328,120]
[340692299,1729687844784,-500.0,0.00052328,120]
[340692301,1729687844795,-500.0,0.00052328,120]
[340692303,1729687844807,-595.99238834,0.00052328,120]
[340692305,1729687844817,-664.78,0.00052328,120]
[340692307,1729687844827,-500.0,0.00052328,120]
[340692309,1729687844837,-500.0,0.00052328,120]
[340692311,1729687844847,-500.0,0.00052328,120]
[340692313,1729687844858,-500.0,0.00052328,120]
[340692315,1729687844867,-500.0,0.00052328,120]
[340692317,1729687844877,-500.0,0.00052328,120]
[340692319,1729687844887,-500.0,0.00052328,120]
[340692342,1729687845116,-500.0,0.00052328,120]
[340692343,1729687845126,-500.0,0.00052328,120]
[340692344,1729687845136,-500.0,0.00052328,120]
[340692346,1729687845147,-500.0,0.00052328,120]
[340692348,1729687845157,-500.0,0.00052328,120]
[340692350,1729687845167,-500.0,0.00052328,120]
[340692352,1729687845177,-500.0,0.00052328,120]
[340692354,1729687845187,-500.0,0.00052328,120]
[340692356,1729687845197,-558.83,0.00052328,120]
[340692358,1729687845207,-500.0,0.00052328,120]
[340692359,1729687845216,-500.0,0.00052328,120]
[340692361,1729687845226,-500.0,0.00052328,120]
[340692362,1729687845236,-846.97,0.00052328,120]
[340692363,1729687845245,-558.45,0.00052328,120]
[340692364,1729687845255,-250.41476905,0.00052328,120]
[340692365,1729687845264,-2464.04,0.00052328,120]
[340692366,1729687845274,-500.0,0.00052328,120]
[340692367,1729687845283,-500.0,0.00052328,120]
[340692368,1729687845293,-500.0,0.00052328,120]
[340692369,1729687845303,-500.0,0.00052328,120]
[340692370,1729687845313,-500.0,0.00052328,120]
[340692371,1729687845323,-500.0,0.00052328,120]
[340692372,1729687845333,-500.0,0.00052328,120]
[340692373,1729687845343,-500.0,0.00052328,120]
[340692374,1729687845352,-512.63,0.00052328,120]
[340692375,1729687845362,-500.0,0.00052328,120]
[340692376,1729687845372,-410.0846187,0.00052328,120]
[340692377,1729687845381,-500.0,0.00052328,120]
[340692378,1729687845391,-500.0,0.00052328,120]
[340692379,1729687845401,-1748.36,0.00052328,120]
[340692380,1729687845410,-500.0,0.00052328,120]
[340692381,1729687845420,-500.0,0.00052328,120]
[340692382,1729687845429,-500.0,0.00052328,120]
[340692383,1729687845439,-500.0,0.00052328,120]
[340692384,1729687845450,-558.87654502,0.00052328,120]
[340692385,1729687845459,-500.0,0.00052328,120]
[340692386,1729687845470,-500.0,0.00052328,120]
[340692387,1729687845479,-506.31919096,0.00052328,120]
[340692388,1729687845488,-500.0,0.00052328,120]
[340692389,1729687845498,-500.0,0.00052328,120]
[340692390,1729687845507,-500.0,0.00052328,120]
[340692391,1729687845516,-500.0,0.00052328,120]
[340692392,1729687845526,-500.0,0.00052328,120]
[340692393,1729687845536,-500.0,0.00052328,120]
[340692394,1729687845546,-2572.14,0.00052328,120]
[340692395,1729687845556,-500.0,0.00052328,120]
[340692396,1729687845565,-500.0,0.00052328,120]
[340692397,1729687845575,-500.0,0.00052328,120]
[340692398,1729687845585,-500.0,0.00052328,120]
[340692399,1729687845594,-500.0,0.00052328,120]
[340692400,1729687845603,-500.0,0.00052328,120]
[340692401,1729687845615,-544.98,0.00052328,120]
[340692402,1729687845624,-500.0,0.00052328,120]
[340692403,1729687845633,-500.0,0.00052328,120]
[340692404,1729687845642,-640.98,0.00052328,120]
[340692405,1729687845652,-500.0,0.00052328,120]
[340692406,1729687845662,-500.0,0.00052328,120]
[340692407,1729687845671,-500.0,0.00052328,120]
[340692408,1729687845680,-500.0,0.00052328,120]
[340692409,1729687845690,-500.0,0.00052328,120]
[340692410,1729687845699,-500.0,0.00052328,120]
[340692411,1729687845708,-500.0,0.00052328,120]
[340692412,1729687845717,-500.0,0.00052328,120]
[340692413,1729687845727,-1069.68,0.00052328,120]
[340692414,1729687845736,-500.0,0.00052328,120]
[340692415,1729687845746,-500.0,0.00052328,120]
[340692416,1729687845755,-500.0,0.00052328,120]
[340692417,1729687845766,-500.0,0.00052328,120]
[340692418,1729687845776,-571.42,0.00052328,120]
[340692419,1729687845785,-500.0,0.00052328,120]
[340692420,1729687845795,-933.04,0.00052328,120]
[340692421,1729687845805,-500.0,0.00052328,120]
[340692422,1729687845815,-946.92,0.00052328,7]
[340692423,1729687845826,-500.0,0.00052328,120]
[340692424,1729687845836,-500.0,0.00052328,120]
[340692425,1729687845846,-500.0,0.00052328,120]
[340692426,1729687845858,-500.0,0.00052328,120]
[340692427,1729687845869,-250.85325446,0.00052328,120]
[340692428,1729687845880,-500.0,0.00052328,120]
[340692429,1729687845891,-500.0,0.00052328,120]
[340692430,1729687845901,-514.14,0.00052328,120]
[340692431,1729687845911,-500.0,0.00052328,120]
[340692432,1729687845921,-355.99970932,0.00052328,120]
[340692433,1729687845932,-587.73,0.00052328,120]
[340692434,1729687845942,-500.0,0.00052328,120]
[340692435,1729687845953,-500.0,0.00052328,120]
[340692436,1729687845965,-500.0,0.00052328,120]
[340692437,1729687845975,-513.53372857,0.00052328,120]
[340692438,1729687845985,-500.0,0.00052328,120]
[340692439,1729687845995,-1178.9,0.00052328,120]
[340692440,1729687846005,-500.0,0.00052328,120]
[340692441,1729687846015,-292.99236801,0.00052328,120]
[340692442,1729687846026,-512.44,0.00052328,120]
[340692443,1729687846036,-500.0,0.00052328,120]
[340692444,1729687846046,-500.0,0.00052328,120]
[340692445,1729687846056,-500.0,0.00052328,120]
[340692446,1729687846068,-607.39,0.00052328,120]
[340692447,1729687846077,-651.89,0.00052328,120]
[340692448,1729687846087,-500.0,0.00052328,120]
[340692449,1729687846099,-500.0,0.00052328,120]
[340692451,1729687846116,-500.0,0.00052328,120]
[340692453,1729687846125,-500.0,0.00052328,120]
[340692454,1729687846134,-500.0,0.00052328,120]
[340692455,1729687846143,-500.0,0.00052328,120]
[340692456,1729687846151,-500.0,0.00052328,120]
[340692457,1729687846160,-500.0,0.00052328,120]
[340692458,1729687846169,-558.43,0.00052328,120]
[340692459,1729687846179,-500.0,0.00052328,120]
[340692460,1729687846188,-605.0703631,0.00052328,120]
[340692461,1729687846197,-500.0,0.00052328,120]
[340692462,1729687846208,-500.0,0.00052328,120]
[340692463,1729687846218,-500.0,0.00052328,120]
[340692464,1729687846227,-500.0,0.00052328,120]
[340692465,1729687846236,-993.68,0.00052328,120]
[340692466,1729687846246,-552.85,0.00052328,120]
[340692467,1729687846257,-543.65,0.00052328,120]
[340692468,1729687846269,-500.0,0.00052328,120]
[340692469,1729687846279,-500.0,0.00052328,120]
[340692470,1729687846290,-500.0,0.00052328,120]
[340692471,1729687846300,-500.0,0.00052328,120]
[340692472,1729687846310,-519.21,0.00052328,120]
[340692473,1729687846321,-500.0,0.00052328,120]
[340692474,1729687846330,-564.97,0.00052328,120]
[340692475,1729687846339,-500.0,0.00052328,120]
[340692476,1729687846349,-500.0,0.00052328,120]
[340692477,1729687846358,-500.0,0.00052328,120]
[340692478,1729687846367,-500.0,0.00052328,120]
[340692479,1729687846376,-659.27,0.00052328,120]
[340692480,1729687846385,-500.0,0.00052328,120]
[340692481,1729687846396,-512.02520552,0.00052328,120]
[340692482,1729687846405,-521.30470343,0.00052328,120]
[340692483,1729687846417,-500.0,0.00052328,120]
[340692484,1729687846427,-500.0,0.00052328,120]
[340692485,1729687846436,-245.37367337,0.00052328,120]
[340692486,1729687846445,-500.0,0.00052328,120]
[340692487,1729687846455,-500.0,0.00052328,120]
[340692488,1729687846465,-500.0,0.00052328,120]
[340692489,1729687846474,-500.0,0.00052328,120]
[340692490,1729687846483,-500.0,0.00052328,120]
[340692491,1729687846492,-798.9,0.00052328,120]
[340692492,1729687846501,-500.0,0.00052328,120]
[340692493,1729687846510,-500.0,0.00052328,120]
[340692494,1729687846520,-1377.93,0.00052328,120]
[340692495,1729687846529,-500.0,0.00052328,120]
[340692496,1729687846538,-500.0,0.00052328,120]
[340692497,1729687846547,-500.0,0.00052328,120]
[340692498,1729687846556,-1323.39,0.00052328,120]
[340692499,1729687846565,-525.95714335,0.00052328,120]
[340692500,1729687846574,-500.0,0.00052328,120]
[340692501,1729687846583,-500.0,0.00052328,120]
[340692502,1729687846592,-500.0,0.00052328,120]
[340692503,1729687846601,-500.0,0.00052328,120]
[340692504,1729687846611,-500.0,0.00052328,120]
[340692505,1729687846620,-500.0,0.00052328,120]
[340692506,1729687846629,-500.0,0.00052328,120]
[340692507,1729687846638,-615.59,0.00052328,120]
[340692508,1729687846647,-500.0,0.00052328,120]
[340692509,1729687846657,-1043.56,0.00052328,120]
[340692510,1729687846667,-500.0,0.00052328,120]
[340692511,1729687846678,-500.0,0.00052328,120]
[340692512,1729687846689,-590.61,0.00052328,120]
[340692513,1729687846699,-608.59,0.00052328,120]
[340692514,1729687846709,-500.0,0.00052328,120]
[340692515,1729687846718,-514.13715197,0.00052328,120]
[340692516,1729687846728,-500.0,0.00052328,120]
[340692517,1729687846737,-500.0,0.00052328,120]
[340692518,1729687846747,-929.32,0.00052328,120]
[340692519,1729687846757,-500.0,0.00052328,120]
[340692520,1729687846766,-559.49,0.00052328,120]
[340692521,1729687846775,-749.32,0.00052328,120]
[340692522,1729687846785,-500.0,0.00052328,120]
[340692523,1729687846795,-500.0,0.00052328,120]
[340692524,1729687846804,-535.59,0.00052328,120]
[340692525,1729687846814,-500.0,0.00052328,120]
[340692526,1729687846823,-607.04,0.00052328,120]
[340692527,1729687846832,-500.0,0.00052328,120]
[340692528,1729687846842,-500.0,0.00052328,120]
[340692529,1729687846851,-500.0,0.00052328,120]
[340692530,1729687846861,-500.0,0.00052328,120]
[340692531,1729687846870,-531.05,0.00052328,120]
[340692532,1729687846879,-748.28,0.00052328,120]
[340692533,1729687846889,-500.0,0.00052328,120]
[340692534,1729687846898,-500.0,0.00052328,120]
[340692535,1729687846907,-500.0,0.00052328,120]
[340692536,1729687846916,-2343.13,0.00052328,120]
[340692537,1729687846925,-668.08,0.00052328,120]
[340692538,1729687846934,-500.0,0.00052328,120]
[340692539,1729687846943,-500.0,0.00052328,120]
[340692540,1729687846953,-569.27,0.00052328,120]
[340692541,1729687846963,-500.0,0.00052328,120]
[340692542,1729687846972,-500.0,0.00052328,120]
[340692543,1729687846981,-500.0,0.00052328,120]
[340692544,1729687846990,-500.0,0.00052328,120]
[340692545,1729687846999,-547.15161952,0.00052328,120]
[340692546,1729687847008,-2035.46,0.00052328,120]
[340692547,1729687847017,-500.0,0.00052328,120]
[340692548,1729687847025,-500.0,0.00052328,120]
[340692549,1729687847035,-347.27215375,0.00052328,120]
[340692550,1729687847044,-505.24295975,0.00052328,120]
[340692551,1729687847053,-3497.1,0.00052328,120]
[340692552,1729687847062,-1121.32,0.00052328,120]
[340692553,1729687847071,-500.0,0.00052328,120]
[340692554,1729687847080,-722.97,0.00052328,120]
[340692555,1729687847089,-1025.16,0.00052328,120]
[340692556,1729687847098,-500.0,0.00052328,120]
[340692557,1729687847111,-500.0,0.00052328,120]
[340692558,1729687847120,-500.0,0.00052328,120]
[340692559,1729687847129,-500.0,0.00052328,120]
[340692560,1729687847138,-2112.68,0.00052328,120]
[340692561,1729687847147,-328.27572537,0.00052328,120]
[340692562,1729687847157,-500.0,0.00052328,120]
[340692563,1729687847166,-590.35,0.00052328,120]
[340692564,1729687847175,-735.41,0.00052328,120]
[340692565,1729687847184,-1209.54,0.00052328,120]
[340692566,1729687847194,-500.0,0.00052328,120]
[340692567,1729687847203,-500.0,0.00052328,120]
[340692568,1729687847212,-500.0,0.00052328,120]
[340692569,1729687847221,-500.0,0.00052328,120]
[340692570,1729687847231,-500.0,0.00052328,120]
[340692571,1729687847240,-500.0,0.00052328,120]
[340692572,1729687847249,-500.0,0.00052328,120]
[340692573,1729687847258,-500.0,0.00052328,120]
[340692574,1729687847267,-500.0,0.00052328,120]
[340692575,1729687847276,-500.0,0.00052328,120]
[340692576,1729687847285,-500.0,0.00052328,120]
[340692577,1729687847295,-500.0,0.00052328,120]
[340692578,1729687847304,-537.97,0.00052328,120]
[340692579,1729687847314,-500.0,0.00052328,120]
[340692580,1729687847323,-500.0,0.00052328,120]
[340692581,1729687847334,-500.0,0.00052328,120]
[340692582,1729687847344,-500.0,0.00052328,120]
[340692583,1729687847355,-500.0,0.00052328,120]
[340692584,1729687847365,-500.0,0.00052328,120]
[340692585,1729687847374,-500.0,0.00052328,14]
[340692586,1729687847383,-500.0,0.00052328,120]
[340692587,1729687847393,-646.68,0.00052328,120]
[340692588,1729687847403,-500.0,0.00052328,120]
[340692589,1729687847412,-500.0,0.00052328,120]
[340692590,1729687847421,-500.0,0.00052328,120]
[340692591,1729687847430,-500.0,0.00052328,120]
[340692592,1729687847439,-500.0,0.00052328,120]
[340692593,1729687847449,-500.0,0.00052328,120]
[340692594,1729687847458,-877.64,0.00052328,120]
[340692595,1729687847468,-500.0,0.00052328,120]
[340692596,1729687847478,-429.80707704,0.00052328,120]
[340692597,1729687847487,-500.0,0.00052328,120]
[340692598,1729687847499,-500.0,0.00052328,120]
[340692599,1729687847509,-560.55,0.00052328,120]
[340692600,1729687847518,-500.0,0.00052328,120]
[340692601,1729687847527,-855.82508788,0.00052328,120]
[340692602,1729687847956,-0.04629602,0.00052328,120]
[340692603,1729687847970,-51.0786161,0.00052328,120]
[340692604,1729687847979,-834.27,0.00052328,120]
[340692605,1729687847988,-1158.17,0.00052328,120]
[340692606,1729687847998,-731.87,0.00052328,120]
[340692607,1729687848008,-513.35384225,0.00052328,120]
[340692608,1729687848019,-887.56,0.00052328,120]
[340692609,1729687848028,-500.0,0.00052328,120]
[340692610,1729687848037,-500.0,0.00052328,120]
[340692611,1729687848046,-500.0,0.00052328,120]
[340692612,1729687848055,-509.80576077,0.00052328,120]
[340692613,1729687848064,-500.0,0.00052328,120]
[340692614,1729687848073,-611.43067772,0.00052328,120]
[340692615,1729687848082,-500.0,0.00052328,120]